bitfinex/quotes_BTCUSD_20250316
["timestamp","ask_amount","ask_price","bid_price","bid_amount"]
[1742156994115,1.13809551,83262.0,83261.0,1e-06]
[1742156995293,1.1569243,83262.0,83261.0,1e-06]
[1742156997129,1.1569243,83262.0,83261.0,1e-06]
[1742156997643,1.10156551,83262.0,83261.0,1e-06]
[1742156998083,0.45643151,83262.0,83261.0,1e-06]
[1742156998265,0.41844171,83262.0,83261.0,1e-06]
[1742156998504,0.66060551,83262.0,83261.0,1e-06]
[1742156999128,0.65560551,83262.0,83261.0,1e-06]
[1742156999548,0.66060551,83262.0,83261.0,1e-06]
[1742156999811,0.65560551,83262.0,83261.0,1e-06]
[1742157000027,0.65460551,83262.0,83261.0,1e-06]
[1742157000229,0.65060551,83262.0,83261.0,1e-06]
[1742157000660,0.65260551,83262.0,83261.0,1e-06]
[1742157000876,0.67143248,83262.0,83261.0,1e-06]
[1742157001291,0.65560551,83262.0,83261.0,1e-06]
[1742157002945,0.45143151,83262.0,83261.0,1e-06]
[1742157003121,0.46344151,83262.0,83261.0,1e-06]
[1742157003376,0.65560551,83262.0,83261.0,1e-06]
[1742157004348,0.67443185,83262.0,83261.0,1e-06]
[1742157007409,0.62443205,83262.0,83261.0,1e-06]
[1742157007762,0.67443185,83262.0,83261.0,1e-06]
[1742157007916,0.62443205,83262.0,83261.0,1e-06]
[1742157008119,0.60560571,83262.0,83261.0,1e-06]
[1742157008343,0.39643171,83262.0,83261.0,1e-06]
[1742157008559,0.44643151,83262.0,83261.0,1e-06]
[1742157008939,0.44343151,83262.0,83261.0,1e-06]
[1742157009139,0.00675664,83262.0,83261.0,0.192167]
[1742157009337,0.00675664,83262.0,83261.0,0.204177]
[1742157009733,0.00775664,83262.0,83261.0,0.204177]
[1742157009934,0.00809504,83262.0,83261.0,0.204177]
[1742157010371,0.00709504,83262.0,83261.0,0.204177]
[1742157010575,0.00509504,83262.0,83261.0,0.204177]
[1742157010744,0.00509504,83262.0,83261.0,0.285177]
[1742157010981,0.00509504,83262.0,83261.0,1.785177]
[1742157011183,0.00509504,83262.0,83261.0,1.79971785]
[1742157011335,0.00509504,83262.0,83261.0,1.81180173]
[1742157011542,0.00509504,83262.0,83261.0,1.81280173]
[1742157012156,0.00509504,83262.0,83261.0,1.81180173]
[1742157012379,0.00509504,83262.0,83261.0,1.81080173]
[1742157012690,0.00509504,83262.0,83261.0,2.11580173]
[1742157015439,0.00509504,83262.0,83261.0,2.24182088]
[1742157017684,0.0003384,83262.0,83261.0,2.24182088]
[1742157018639,0.0003384,83262.0,83261.0,0.74182088]
[1742157019041,0.0003384,83262.0,83261.0,0.75636173]
[1742157020185,0.0003384,83262.0,83261.0,0.75536173]
[1742157020360,0.0003384,83262.0,83261.0,2.25536173]
[1742157020561,0.0013384,83262.0,83261.0,2.25236173]
[1742157020744,0.0023384,83262.0,83261.0,2.25736173]
[1742157021759,4e-07,83267.0,83266.0,0.504164]
[1742157021956,1e-08,83268.0,83267.0,0.40734985]
[1742157022163,1e-08,83268.0,83267.0,0.52692488]
[1742157022907,1e-08,83268.0,83267.0,0.57622488]
[1742157023332,1e-08,83268.0,83267.0,2.07622488]
[1742157023538,1e-08,83268.0,83267.0,2.08222488]
[1742157023913,1e-08,83268.0,83267.0,2.07622488]
[1742157024458,1e-08,83268.0,83267.0,2.08222488]
[1742157025082,1e-08,83268.0,83267.0,2.08822488]
[1742157026090,1e-08,83268.0,83267.0,2.08222488]
[1742157026287,1e-08,83268.0,83267.0,2.30222332]
[1742157026457,1e-08,83268.0,83267.0,2.30822332]
[1742157030273,1e-08,83268.0,83267.0,2.44870332]
[1742157031918,0.01881939,83305.0,83302.0,0.19207]
[1742157032120,0.01881939,83305.0,83301.0,0.012004]
[1742157032325,0.00439067,83304.0,83302.0,0.192072]
[1742157032504,0.005,83302.0,83300.0,0.01210044]
[1742157032708,0.01639467,83304.0,83300.0,0.01210044]
[1742157032944,0.0499998,83300.0,83298.0,0.012005]
[1742157033355,0.01992329,83305.0,83304.0,0.012004]
[1742157033558,0.06992309,83305.0,83304.0,0.012004]
[1742157033765,0.06992309,83305.0,83299.0,0.012004]
[1742157033766,0.0499998,83300.0,83299.0,0.012004]
[1742157033970,0.0003384,83304.0,83300.0,0.012004]
[1742157034304,0.0499998,83301.0,83300.0,0.204078]
[1742157034510,0.0003384,83304.0,83303.0,0.204073]
[1742157034854,0.05458374,83304.0,83303.0,0.204073]
[1742157035156,0.0499998,83301.0,83300.0,0.01222094]
[1742157035457,0.0499998,83301.0,83300.0,0.012004]
[1742157036202,0.0499998,83302.0,83301.0,0.204078]
[1742157037501,0.0499998,83303.0,83302.0,0.012004]
[1742157038811,0.0503382,83304.0,83303.0,0.204073]
[1742157038982,0.0003384,83304.0,83303.0,0.204073]
[1742157040255,0.0003384,83304.0,83303.0,1.704073]
[1742157040865,0.0003384,83304.0,83303.0,1.705073]
[1742157041194,0.0003384,83304.0,83303.0,1.706073]
[1742157041394,0.0003384,83304.0,83303.0,2.006073]
[1742157041520,0.0003384,83304.0,83303.0,2.02061385]
[1742157042111,0.0003384,83304.0,83303.0,2.01861385]
[1742157042315,0.0003384,83304.0,83303.0,2.02061385]
[1742157043781,0.0003384,83304.0,83303.0,0.007]
[1742157044493,0.0003384,83304.0,83303.0,0.003]
[1742157045302,0.0003384,83304.0,83303.0,0.195069]
[1742157045907,0.0003384,83304.0,83303.0,0.205073]
[1742157046120,0.0003384,83304.0,83303.0,0.003]
[1742157046326,0.0003384,83304.0,83303.0,0.002]
[1742157046725,0.0003384,83304.0,83303.0,0.004]
[1742157047913,0.0173424,83304.0,83303.0,0.004]
[1742157048120,0.1130422,83304.0,83303.0,0.004]
[1742157049276,0.0630424,83304.0,83303.0,0.004]
[1742157049427,0.1130422,83304.0,83303.0,0.004]
[1742157049636,0.0630424,83304.0,83303.0,0.004]
[1742157049839,0.1130422,83304.0,83303.0,0.004]
[1742157050561,0.0630424,83304.0,83303.0,0.004]
[1742157050782,0.1130422,83304.0,83303.0,0.004]
[1742157051658,0.11680342,83304.0,83303.0,0.004]
[1742157052067,0.11830411,83304.0,83303.0,0.004]
[1742157052272,0.11680342,83304.0,83303.0,0.002]
[1742157052473,0.11680342,83304.0,83288.0,1.5]
[1742157052474,0.012005,83294.0,83288.0,1.692103]
[1742157052680,0.192095,83292.0,83288.0,1.5]
[1742157053003,0.00376122,83291.0,83287.0,0.312006]
[1742157053209,0.012006,83286.0,83285.0,0.01222343]
[1742157053368,0.012006,83287.0,83282.0,0.504123]
[1742157053567,0.012006,83287.0,83283.0,1.5]
[1742157053893,0.00376122,83286.0,83283.0,1.5]
[1742157054640,0.19587022,83286.0,83283.0,1.5]
[1742157054835,0.20912,83284.0,83283.0,1.5]
[1742157055038,0.20912,83284.0,83271.0,0.192142]
[1742157055039,0.012008,83275.0,83270.0,0.14044]
[1742157055268,0.204149,83272.0,83266.0,0.012009]
[1742157055471,0.204157,83269.0,83257.0,0.344626]
[1742157055668,0.204157,83269.0,83260.0,0.3]
[1742157055879,0.204157,83269.0,83255.0,0.012011]
[1742157055880,0.26439496,83269.0,83242.0,0.192208]
[1742157056092,0.26289381,83269.0,83250.0,0.012012]
[1742157056292,0.26289381,83269.0,83268.0,0.0002928]
[1742157056870,0.26289381,83269.0,83268.0,0.0082928]
[1742157057434,0.26289381,83269.0,83268.0,0.0062928]
[1742157057638,0.69526888,83269.0,83268.0,0.0062928]
[1742157057795,0.69526888,83269.0,83268.0,0.0082928]
[1742157059209,0.69526888,83269.0,83268.0,0.0002928]
[1742157061849,0.71409348,83269.0,83268.0,0.0002928]
[1742157064994,0.192169,83260.0,83253.0,0.192183]
[1742157065208,0.192169,83260.0,83253.0,0.19259481]
[1742157065403,0.192169,83260.0,83254.0,0.012011]
[1742157065610,0.204179,83260.0,83255.0,0.19218]
[1742157065787,0.204179,83260.0,83255.0,0.204191]
[1742157065992,0.01201,83261.0,83256.0,0.012011]
[1742157066881,0.192169,83260.0,83256.0,0.012011]
[1742157067090,0.0499998,83258.0,83256.0,0.012011]
[1742157067324,0.0499998,83258.0,83256.0,0.014011]
[1742157067529,0.0499998,83258.0,83257.0,0.204187]
[1742157067755,0.40549967,83269.0,83265.0,0.192157]
[1742157067943,0.43667487,83269.0,83268.0,0.012009]
[1742157068158,0.00353439,83268.0,83266.0,0.204164]
[1742157068371,0.38667507,83269.0,83268.0,0.204159]
[1742157068819,0.43667487,83269.0,83268.0,0.204159]
[1742157069021,0.38667507,83269.0,83268.0,0.204159]
[1742157069247,0.43667487,83269.0,83268.0,0.204159]
[1742157069623,0.0003384,83269.0,83268.0,0.204159]
[1742157070180,0.0003384,83269.0,83268.0,0.205159]
[1742157070503,0.0003384,83269.0,83268.0,0.204159]
[1742157070773,0.0003384,83269.0,83268.0,0.205159]
[1742157071531,0.0003384,83269.0,83268.0,0.505159]
[1742157071729,0.0003384,83269.0,83268.0,0.59699985]
[1742157072137,0.0003384,83269.0,83268.0,0.60610056]
[1742157072580,0.0003384,83269.0,83268.0,0.60810056]
[1742157072996,0.0003384,83269.0,83268.0,0.60610056]
[1742157073151,0.0003384,83269.0,83268.0,2.10510056]
[1742157073360,0.0003384,83269.0,83268.0,2.11010056]
[1742157073525,0.0003384,83269.0,83268.0,2.11210056]
[1742157073725,0.0003384,83269.0,83268.0,2.10510056]
[1742157074181,0.0003384,83269.0,83268.0,2.11110056]
[1742157074411,0.0003384,83269.0,83268.0,2.11710056]
[1742157075590,0.0003384,83269.0,83268.0,2.14148706]
[1742157076938,0.0003384,83269.0,83268.0,0.516159]
[1742157077369,0.0003384,83269.0,83268.0,0.312]
[1742157077570,0.0173474,83269.0,83268.0,0.312]
[1742157077904,0.0553382,83269.0,83268.0,0.006]
[1742157078111,0.0553382,83269.0,83268.0,0.01]
[1742157078341,0.05887961,83269.0,83268.0,0.01]
[1742157078546,0.05887961,83269.0,83268.0,0.004]
[1742157078939,0.07088861,83269.0,83268.0,0.008]
[1742157079139,0.53766368,83269.0,83268.0,0.008]
[1742157079410,0.53766368,83269.0,83268.0,0.004]
[1742157079615,0.0499998,83259.0,83256.0,0.0001692]
[1742157079792,0.192176,83257.0,83256.0,0.0001692]
[1742157080026,0.209187,83257.0,83256.0,0.0001692]
[1742157080202,0.25903615,83257.0,83256.0,0.0001692]
[1742157080419,0.30903595,83257.0,83256.0,0.0001692]
[1742157081596,0.32786158,83257.0,83256.0,0.0001692]
[1742157082042,0.32786158,83257.0,83256.0,0.0021692]
[1742157083027,0.32786158,83257.0,83256.0,0.0041692]
[1742157083406,0.79463665,83257.0,83256.0,0.0041692]
[1742157084219,0.79463665,83257.0,83256.0,0.0021692]
[1742157084817,0.79463665,83257.0,83256.0,0.0001692]
[1742157085245,0.71653665,83257.0,83256.0,0.0001692]
[1742157086022,0.71453665,83257.0,83256.0,0.0001692]
[1742157086216,0.71553665,83257.0,83256.0,0.0001692]
[1742157087825,0.79563665,83257.0,83256.0,0.0001692]
[1742157088673,0.79463665,83257.0,83256.0,0.0001692]
[1742157089014,0.79963665,83257.0,83256.0,0.0001692]
[1742157089368,0.80063665,83257.0,83256.0,0.0001692]
[1742157089552,0.79563665,83257.0,83256.0,0.0001692]
[1742157089749,0.79863665,83257.0,83256.0,0.0001692]
[1742157089952,0.79963665,83257.0,83256.0,0.0001692]
[1742157091670,0.36954065,83253.0,83252.0,2.1e-07]
[1742157091877,0.50895165,83253.0,83252.0,8.5e-07]
[1742157092071,0.51247079,83253.0,83252.0,8.5e-07]
[1742157092249,0.54873856,83253.0,83252.0,8.5e-07]
[1742157093197,0.55373856,83253.0,83252.0,8.5e-07]
[1742157093403,0.55873856,83253.0,83252.0,8.5e-07]
[1742157094343,0.52247079,83253.0,83252.0,8.5e-07]
[1742157094623,0.50792994,83253.0,83252.0,8.5e-07]
[1742157094822,0.64836994,83253.0,83252.0,8.5e-07]
[1742157095020,0.64836994,83253.0,83252.0,0.00017005]
[1742157095222,0.50792994,83253.0,83252.0,0.00017005]
[1742157095518,0.64836994,83253.0,83252.0,0.00017005]
[1742157096127,0.66720071,83253.0,83252.0,0.00017005]
[1742157096472,0.64836994,83253.0,83252.0,0.00017005]
[1742157096672,1.03504501,83253.0,83252.0,0.00017005]
[1742157100073,1.03504501,83253.0,83252.0,5e-08]
[1742157100276,1.16916089,83253.0,83252.0,5e-08]
[1742157100475,1.04958586,83253.0,83252.0,5e-08]
[1742157101201,1.03504501,83253.0,83252.0,5e-08]
[1742157102334,0.98504521,83253.0,83252.0,5e-08]
[1742157102510,0.73504501,83253.0,83252.0,5e-08]
[1742157103569,0.75387559,83253.0,83252.0,5e-08]
[1742157105393,0.74387559,83253.0,83252.0,5e-08]
[1742157105832,0.75387559,83253.0,83252.0,5e-08]
[1742157110322,0.73504501,83253.0,83252.0,5e-08]
[1742157110520,1.03504501,83253.0,83252.0,5e-08]
[1742157113722,1.05387547,83253.0,83252.0,5e-08]
[1742157114221,1.04887547,83253.0,83252.0,5e-08]
[1742157114423,0.97227547,83253.0,83252.0,5e-08]
[1742157114852,0.92227567,83253.0,83252.0,5e-08]
[1742157115256,0.97227547,83253.0,83252.0,5e-08]
[1742157115651,0.92227567,83253.0,83252.0,5e-08]
[1742157115979,0.97227547,83253.0,83252.0,5e-08]
[1742157116185,0.66727547,83253.0,83252.0,5e-08]
[1742157116597,0.67227547,83253.0,83252.0,5e-08]
[1742157117765,0.65344501,83253.0,83252.0,5e-08]
[1742157118081,0.65378341,83253.0,83252.0,5e-08]
[1742157121825,0.65378341,83253.0,83252.0,5e-08]
[1742157122643,0.46754341,83253.0,83252.0,5e-08]
[1742157122845,0.60794341,83253.0,83252.0,5e-08]
[1742157125223,0.92677336,83253.0,83252.0,5e-08]
[1742157125422,1.05457336,83253.0,83252.0,5e-08]
[1742157126076,0.005,83219.0,83218.0,0.0001696]
[1742157126275,0.0670158,83219.0,83218.0,0.00029331]
[1742157126516,0.07048055,83219.0,83218.0,0.00029331]
[1742157128066,0.07048055,83219.0,83218.0,0.00229331]
[1742157128361,0.07048055,83219.0,83218.0,0.00429331]
[1742157128565,0.07048055,83219.0,83218.0,0.00229331]
[1742157128789,0.07048055,83219.0,83218.0,0.00029331]
[1742157128997,0.45865774,83219.0,83218.0,0.00129331]
[1742157129319,0.45715557,83219.0,83218.0,0.00129331]
[1742157129851,0.45715557,83219.0,83218.0,0.00029331]
[1742157131043,0.4769923,83219.0,83218.0,0.00029331]
[1742157131453,0.4769923,83219.0,83216.0,8.1e-07]
[1742157131454,0.0670158,83217.0,83216.0,8.1e-07]
[1742157131696,0.07196677,83217.0,83216.0,4.179e-05]
[1742157132348,0.09150762,83217.0,83216.0,4.179e-05]
[1742157132556,0.36696677,83217.0,83216.0,4.179e-05]
[1742157132756,0.51486414,83217.0,83216.0,4.179e-05]
[1742157133011,0.07446414,83217.0,83216.0,4.179e-05]
[1742157133367,0.07946414,83217.0,83216.0,4.179e-05]
[1742157134013,0.06744814,83217.0,83216.0,4.179e-05]
[1742157134224,0.27173214,83217.0,83216.0,4.179e-05]
[1742157134730,0.26773214,83217.0,83216.0,4.179e-05]
[1742157134888,0.65940716,83217.0,83216.0,4.179e-05]
[1742157135291,0.65440716,83217.0,83216.0,4.179e-05]
[1742157135638,0.65340716,83217.0,83216.0,4.179e-05]
[1742157135776,0.65240716,83217.0,83216.0,4.179e-05]
[1742157136203,0.65440716,83217.0,83216.0,4.179e-05]
[1742157141754,0.65474576,83217.0,83216.0,4.179e-05]
[1742157144902,0.46247776,83217.0,83216.0,4.179e-05]
[1742157145903,0.42831437,83217.0,83216.0,4.179e-05]
[1742157146021,0.47731417,83217.0,83216.0,4.179e-05]
[1742157146979,0.41529837,83217.0,83216.0,4.179e-05]
[1742157147257,0.39146196,83217.0,83216.0,0.09135779]
[1742157147371,0.39146196,83217.0,83216.0,0.10337886]
[1742157147576,0.00478694,83217.0,83216.0,0.10337886]
[1742157147783,0.0013386,83217.0,83216.0,0.10337886]
[1742157148103,0.0003386,83217.0,83216.0,0.10337886]
[1742157148307,0.0013386,83217.0,83216.0,0.10337886]
[1742157148907,0.0003386,83217.0,83216.0,0.40398677]
[1742157149115,0.0003386,83217.0,83216.0,0.40337886]
[1742157149770,0.0003386,83217.0,83216.0,0.41791971]
[1742157150883,6e-07,83217.0,83216.0,0.42686331]
[1742157151062,6e-07,83217.0,83216.0,1.97636331]
[1742157152662,0.1925234,83253.0,83252.0,0.012011]
[1742157152663,0.0053384,83253.0,83252.0,0.012011]
[1742157152868,0.0499998,83252.0,83249.0,0.19219]
[1742157153044,0.0053384,83253.0,83249.0,0.19219]
[1742157153233,0.0499998,83250.0,83248.0,0.012012]
[1742157153428,0.0499998,83249.0,83248.0,0.012012]
[1742157153908,0.0499998,83249.0,83248.0,0.01205298]
[1742157154306,0.06882765,83249.0,83248.0,0.01205298]
[1742157154652,0.07382765,83249.0,83248.0,4.098e-05]
[1742157154863,0.08583965,83249.0,83248.0,4.098e-05]
[1742157155438,0.08983965,83249.0,83248.0,4.098e-05]
[1742157156082,0.09134126,83249.0,83248.0,4.098e-05]
[1742157156286,0.09634126,83249.0,83248.0,4.098e-05]
[1742157156423,0.1117126,83249.0,83248.0,4.098e-05]
[1742157156854,0.09310467,83249.0,83248.0,4.098e-05]
[1742157157059,0.09810467,83249.0,83248.0,4.098e-05]
[1742157157413,0.07927682,83249.0,83248.0,4.098e-05]
[1742157157621,0.12787856,83249.0,83248.0,4.098e-05]
[1742157158282,0.51455358,83249.0,83248.0,4.098e-05]
[1742157158453,0.51305184,83249.0,83248.0,4.098e-05]
[1742157159834,0.81305184,83249.0,83248.0,4.098e-05]
[1742157161615,0.89205184,83249.0,83248.0,4.098e-05]
[1742157162144,0.91088428,83249.0,83248.0,4.098e-05]
[1742157162529,0.90588428,83249.0,83248.0,4.098e-05]
[1742157162735,0.90188428,83249.0,83248.0,4.098e-05]
[1742157163062,0.90688428,83249.0,83248.0,4.098e-05]
[1742157163475,0.92642513,83249.0,83248.0,4.098e-05]
[1742157164055,0.93142513,83249.0,83248.0,4.098e-05]
[1742157164282,0.209284,83217.0,83216.0,8.1e-07]
[1742157164456,0.209284,83217.0,83216.0,0.00012421]
[1742157164659,0.21253225,83217.0,83216.0,0.00012421]
[1742157165060,0.23136641,83217.0,83216.0,0.00012421]
[1742157166026,0.23170481,83217.0,83216.0,0.00012421]
[1742157166457,0.02742081,83217.0,83216.0,0.01214021]
[1742157166680,0.02742081,83217.0,83216.0,0.20441021]
[1742157166988,0.02417256,83217.0,83216.0,0.20441021]
[1742157167136,0.02417256,83217.0,83216.0,0.01214021]
[1742157167307,0.02739727,83217.0,83216.0,0.01214021]
[1742157169051,0.02239727,83217.0,83216.0,0.20441021]
[1742157169254,0.01917256,83217.0,83216.0,0.20441021]
[1742157169653,0.01917256,83217.0,83216.0,0.28691021]
[1742157170174,0.0003384,83217.0,83216.0,0.63531021]
[1742157170358,0.0003384,83217.0,83216.0,0.64985106]
[1742157171100,0.0003384,83217.0,83216.0,2.14985106]
[1742157172723,0.0003384,83217.0,83216.0,2.15185106]
[1742157172942,4e-07,83217.0,83216.0,2.27142609]
[1742157173973,0.01882925,83247.0,83246.0,0.204213]
[1742157174172,0.01882925,83247.0,83246.0,0.286713]
[1742157174595,0.01882925,83247.0,83246.0,1.786713]
[1742157175279,0.02382925,83247.0,83246.0,1.786713]
[1742157175482,0.02782925,83247.0,83246.0,1.786713]
[1742157176083,0.02782925,83247.0,83246.0,1.79875269]
[1742157176713,0.02382925,83247.0,83246.0,1.79875269]
[1742157176913,0.01882925,83247.0,83246.0,1.79875269]
[1742157177332,0.02182925,83247.0,83246.0,1.79875269]
[1742157177507,0.02182925,83247.0,83246.0,0.29875269]
[1742157177681,0.02182925,83247.0,83246.0,0.59875269]
[1742157177875,0.003,83247.0,83246.0,0.59875269]
[1742157178124,0.005,83247.0,83246.0,0.59875269]
[1742157180230,0.005,83247.0,83246.0,0.61329354]
[1742157180953,0.005,83247.0,83246.0,2.11329354]
[1742157184759,0.005,83247.0,83246.0,2.12230791]
[1742157186343,0.0003382,83248.0,83247.0,0.32655285]
[1742157187397,0.0003382,83248.0,83247.0,0.32955285]
[1742157188794,0.0003794,83248.0,83247.0,0.32955285]
[1742157189036,4e-07,83248.0,83247.0,0.33255285]
[1742157189232,4e-07,83248.0,83247.0,0.57462788]
[1742157189911,4e-07,83248.0,83247.0,2.07462788]
[1742157190568,4e-07,83248.0,83247.0,1.95505285]
[1742157190832,4e-07,83248.0,83247.0,2.09525285]
[1742157191518,4e-07,83248.0,83247.0,2.21482788]
[1742157191850,0.0003388,83248.0,83247.0,2.21482788]
[1742157197128,0.0003388,83248.0,83247.0,2.09525285]
[1742157198664,0.0003388,83248.0,83247.0,1.90755285]
[1742157198869,0.0003388,83248.0,83247.0,1.506]
[1742157199292,0.0003388,83248.0,83247.0,1.806]
[1742157202266,0.0003388,83248.0,83247.0,0.016012]
[1742157202463,0.0003388,83248.0,83247.0,0.014012]
[1742157202620,0.0003388,83248.0,83247.0,0.012012]
[1742157202825,0.0003388,83248.0,83247.0,0.31761888]
[1742157203052,0.0003388,83248.0,83247.0,0.40925285]
[1742157203468,0.0003388,83248.0,83247.0,1.91025285]
[1742157203825,0.0003388,83248.0,83247.0,1.91325285]
[1742157205961,0.0003388,83248.0,83247.0,1.91342195]
[1742157207339,8e-07,83248.0,83247.0,1.93779778]
[1742157208180,0.0003384,83257.0,83247.0,1.93779778]
[1742157208181,6e-07,83257.0,83256.0,0.012011]
[1742157208376,6e-07,83257.0,83256.0,0.51933567]
[1742157208556,6e-07,83257.0,83256.0,0.51872985]
[1742157208939,6e-07,83257.0,83256.0,2.01872985]
[1742157209336,6e-07,83257.0,83256.0,2.02172985]
[1742157209540,6e-07,83257.0,83256.0,2.02472985]
[1742157213375,6e-07,83257.0,83256.0,2.16488985]
[1742157215914,6e-07,83257.0,83256.0,2.16484985]
[1742157216127,6e-07,83257.0,83256.0,2.010189]
[1742157216528,6e-07,83257.0,83256.0,1.850309]
[1742157217284,6e-07,83257.0,83256.0,1.8504781]
[1742157219204,6e-07,83257.0,83256.0,0.3504781]
[1742157219578,6e-07,83257.0,83256.0,1.8504781]
[1742157220359,0.0050006,83257.0,83256.0,0.0061691]
[1742157220725,0.00819354,83257.0,83256.0,0.0061691]
[1742157221087,0.0050006,83257.0,83256.0,0.0061691]
[1742157221490,0.00318835,83257.0,83256.0,0.0151801]
[1742157221688,6e-07,83257.0,83256.0,0.0121801]
[1742157222137,6e-07,83257.0,83256.0,0.0151801]
[1742157222359,6e-07,83257.0,83256.0,0.0131801]
[1742157222559,6e-07,83257.0,83256.0,0.0121801]
[1742157222760,6e-07,83257.0,83256.0,0.0141801]
[1742157222958,6e-07,83257.0,83256.0,0.0161801]
[1742157223366,6e-07,83257.0,83256.0,0.03072095]
[1742157223622,6e-07,83257.0,83256.0,0.33072095]
[1742157223820,6e-07,83257.0,83256.0,1.83072095]
[1742157226077,6e-07,83257.0,83256.0,1.85461102]
[1742157228292,6e-07,83257.0,83256.0,1.97418605]
[1742157234332,6e-07,83257.0,83256.0,1.85461102]
[1742157238921,6e-07,83257.0,83256.0,1.5041691]
[1742157239127,6e-07,83257.0,83256.0,0.0041691]
[1742157239128,0.2859876,83257.0,83256.0,0.0041691]
[1742157239296,0.38847801,83257.0,83256.0,0.0041691]
[1742157239629,0.77511205,83257.0,83256.0,0.0041691]
[1742157239801,0.2541958,83253.0,83252.0,0.10614937]
[1742157240028,0.3802958,83253.0,83252.0,0.10614937]
[1742157240326,0.77512045,83253.0,83252.0,0.10614937]
[1742157241148,0.77712045,83253.0,83252.0,0.10614937]
[1742157241502,0.77612045,83253.0,83252.0,0.10614937]
[1742157241708,0.204208,83248.0,83247.0,0.0001691]
[1742157241964,0.2542078,83248.0,83247.0,0.0001691]
[1742157242363,0.25739841,83248.0,83247.0,0.0001691]
[1742157243504,0.64403245,83248.0,83247.0,0.0001691]
[1742157243713,0.64603245,83248.0,83247.0,0.0001691]
[1742157243911,0.66486022,83248.0,83247.0,0.0001691]
[1742157244418,0.79766022,83248.0,83247.0,0.0001691]
[1742157244841,0.79766022,83248.0,83216.0,8.1e-07]
[1742157244842,0.017016,83218.0,83216.0,8.1e-07]
[1742157245055,0.1490158,83218.0,83216.0,8.1e-07]
[1742157245260,0.19797396,83218.0,83217.0,0.0002104]
[1742157245667,0.216808,83218.0,83217.0,0.0002104]
[1742157247061,0.19797396,83218.0,83217.0,0.0002104]
[1742157247662,0.21025048,83218.0,83217.0,0.0002104]
[1742157248084,0.09895796,83218.0,83217.0,0.0002104]
[1742157248292,0.00315816,83218.0,83217.0,0.2044944]
[1742157248507,0.0549998,83226.0,83220.0,0.204276]
[1742157248706,0.0620148,83225.0,83224.0,1.5]
[1742157248911,0.2592638,83225.0,83224.0,1.5]
[1742157249132,0.0670158,83218.0,83217.0,0.0002104]
[1742157249527,0.1490158,83218.0,83217.0,0.0002104]
[1742157251150,0.1490158,83218.0,83217.0,0.0132264]
[1742157251151,0.1319998,83218.0,83217.0,0.0132264]
[1742157251350,0.1369998,83218.0,83217.0,0.0132264]
[1742157251549,0.0188337,83218.0,83217.0,0.0132264]
[1742157251895,0.0188337,83218.0,83217.0,1.5132264]
[1742157252532,0.0688335,83218.0,83217.0,1.5132264]
[1742157252711,0.0188337,83218.0,83217.0,1.5132264]
[1742157253060,0.0188337,83218.0,83217.0,1.5122264]
[1742157253884,0.0188337,83218.0,83217.0,1.5132264]
[1742157254304,0.0188337,83218.0,83217.0,1.5122264]
[1742157254559,0.0188337,83218.0,83217.0,1.5142264]
[1742157255492,0.0688335,83218.0,83217.0,1.5142264]
[1742157255687,0.0858495,83218.0,83217.0,0.0032104]
[1742157255894,0.08897006,83218.0,83217.0,0.0032104]
[1742157256309,0.08897006,83218.0,83217.0,0.0012104]
[1742157256502,0.08897006,83218.0,83217.0,0.0002104]
[1742157256703,0.16447006,83218.0,83217.0,0.0022104]
[1742157257118,0.16447006,83218.0,83217.0,0.0002104]
[1742157257344,0.16447006,83218.0,83217.0,0.0012104]
[1742157257541,0.16447006,83218.0,83217.0,0.0022104]
[1742157258142,0.16447006,83218.0,83217.0,0.0012104]
[1742157259017,0.07695406,83218.0,83217.0,0.0122264]
[1742157259418,0.02195426,83218.0,83217.0,0.2044944]
[1742157259661,0.07695406,83218.0,83217.0,0.2044944]
[1742157259876,0.07195406,83218.0,83217.0,0.2044944]
[1742157260065,0.02195426,83218.0,83217.0,0.2044944]
[1742157260299,0.07195406,83218.0,83217.0,0.2044944]
[1742157260468,0.02195426,83218.0,83217.0,0.2044944]
[1742157260682,0.07195406,83218.0,83217.0,0.2044944]
[1742157260894,0.07195406,83218.0,83217.0,0.2054944]
[1742157261097,0.07195406,83218.0,83217.0,1.7074944]
[1742157261563,0.02195426,83218.0,83217.0,1.7074944]
[1742157262217,0.07195406,83218.0,83217.0,1.7074944]
[1742157262425,0.08897006,83218.0,83217.0,0.0032104]
[1742157262600,0.35673606,83218.0,83217.0,0.0032104]
[1742157262970,0.35673606,83218.0,83217.0,0.0022104]
[1742157263183,0.35673606,83218.0,83217.0,0.0032104]
[1742157263558,0.35673606,83218.0,83217.0,0.0002104]
[1742157263800,0.35673606,83218.0,83217.0,0.0012104]
[1742157263968,0.35673606,83218.0,83217.0,0.0022104]
[1742157264625,0.07195406,83218.0,83217.0,0.2064944]
[1742157265028,0.07695406,83218.0,83217.0,0.0142264]
[1742157266015,0.28123606,83218.0,83217.0,0.0022104]
[1742157267469,0.08897006,83218.0,83217.0,0.0022104]
[1742157267660,0.07695406,83218.0,83217.0,0.0022104]
[1742157268356,0.07695406,83218.0,83217.0,0.0142264]
[1742157268559,0.0688335,83218.0,83217.0,0.0142264]
[1742157269342,0.0188337,83218.0,83217.0,0.0142264]
[1742157269676,0.0688335,83218.0,83217.0,0.0142264]
[1742157270023,0.07193089,83218.0,83217.0,0.0142264]
[1742157270226,0.0738335,83218.0,83217.0,0.0022104]
[1742157270428,0.07693004,83218.0,83217.0,0.0022104]
[1742157271161,0.0738335,83218.0,83217.0,0.0142264]
[1742157271734,0.07692995,83218.0,83217.0,0.0142264]
[1742157272337,0.07692995,83218.0,83217.0,0.0022104]
[1742157272935,0.07692995,83218.0,83217.0,0.0142264]
[1742157276393,0.0238337,83218.0,83217.0,0.0142264]
[1742157277384,0.0738335,83218.0,83217.0,0.0142264]
[1742157279536,0.0188337,83218.0,83217.0,0.0142264]
[1742157279924,0.0188337,83218.0,83217.0,1.5142264]
[1742157280144,0.0188337,83218.0,83217.0,0.0142264]
[1742157280344,0.005,83220.0,83219.0,0.012016]
[1742157280742,0.01883271,83229.0,83224.0,0.204267]
[1742157280919,0.01883271,83229.0,83228.0,0.204257]
[1742157281126,0.01883271,83229.0,83228.0,0.344377]
[1742157281486,0.005,83246.0,83245.0,0.204215]
[1742157283007,0.005,83246.0,83245.0,0.202215]
[1742157283797,0.0053382,83247.0,83246.0,0.012012]
[1742157284384,0.0003382,83247.0,83246.0,0.012012]
[1742157284588,0.0053382,83247.0,83246.0,0.012012]
[1742157285868,0.0063382,83247.0,83246.0,0.012012]
[1742157286271,0.0013382,83247.0,83246.0,0.012012]
[1742157286567,0.0003382,83247.0,83246.0,0.013012]
[1742157286938,0.0003382,83247.0,83246.0,0.01361884]